bitfinex/quotes_ETHUSD_20230116
["timestamp","ask_amount","ask_price","bid_price","bid_amount"]
[1673898212469,6.25861,1597.8,1597.5,2.0]
[1673898212683,6.25761,1598.1,1597.8,1.65663683]
[1673898212916,6.25708,1598.2,1597.8,1.65663683]
[1673898213441,12.51439,1598.2,1597.8,1.65663683]
[1673898213588,12.51439,1598.2,1597.8,3.65663683]
[1673898213798,12.51439,1598.2,1597.8,1.65663683]
[1673898214048,18.7717,1598.2,1597.8,1.65663683]
[1673898214265,20.96295029,1598.2,1597.8,1.65663683]
[1673898215665,20.96295029,1598.2,1597.0,36.39137]
[1673898215666,25.0344,1597.8,1597.0,36.39137]
[1673898215954,25.0344,1597.8,1597.0,30.13]
[1673898216166,25.0344,1597.8,1596.9,6.26182]
[1673898216390,25.0344,1597.8,1597.0,2.0]
[1673898216391,2.50344,1597.7,1597.0,2.0]
[1673898216534,12.51916,1597.6,1597.0,8.2617]
[1673898216895,12.51916,1597.6,1597.1,0.35767356]
[1673898217476,6.25914,1597.7,1597.1,12.88030356]
[1673898217951,6.25914,1597.7,1597.2,8.2700352]
[1673898218101,6.25914,1597.7,1597.2,14.5309852]
[1673898218570,6.25914,1597.7,1597.2,6.2700352]
[1673898218844,18.77742,1597.7,1597.2,0.0093652]
[1673898219382,6.25914,1597.7,1597.2,12.5311452]
[1673898219807,12.51813,1597.7,1597.2,12.5311452]
[1673898220896,18.77712,1597.7,1597.2,0.0093652]
[1673898224266,18.77712,1597.7,1597.1,0.35767356]
[1673898224437,25.03988,1597.5,1597.1,0.35767356]
[1673898225048,3.0,1597.4,1597.1,0.35767356]
[1673898225259,19.08168,1597.3,1597.1,0.35767356]
[1673898225478,2.0,1597.2,1596.6,0.05126847]
[1673898225730,17.5219,1597.2,1596.6,0.05126847]
[1673898226575,17.5190097,1597.2,1596.6,0.05126847]
[1673898229167,21.78285,1597.2,1596.6,0.05126847]
[1673898229382,18.78579,1597.0,1596.6,0.05126847]
[1673898230044,6.26095,1597.2,1596.6,0.05126847]
[1673898230259,6.26149,1597.1,1596.6,10.94761384]
[1673898230409,16.61657,1597.3,1596.8,6.26229]
[1673898230621,6.26087,1597.3,1596.8,12.52481]
[1673898230831,6.26042,1597.4,1596.8,17.16193779]
[1673898231119,6.26042,1597.4,1596.8,17.16057143]
[1673898231287,6.26042,1597.4,1596.8,17.16238664]
[1673898231482,6.26042,1597.4,1596.9,2.0]
[1673898231671,6.26042,1597.4,1596.9,8.26186]
[1673898231882,6.26042,1597.4,1596.9,6.27122696]
[1673898232141,6.25991,1597.5,1596.9,12.53335696]
[1673898232524,12.51995,1597.5,1596.9,0.00936696]
[1673898232732,18.77999,1597.5,1596.9,0.00936696]
[1673898232982,1.877999,1597.4,1596.9,0.00936696]
[1673898233176,12.52152,1597.3,1596.9,0.00936696]
[1673898234325,6.26076,1597.3,1596.9,6.27148696]
[1673898234656,6.25991,1597.5,1596.9,18.79574696]
[1673898234878,6.25991,1597.5,1596.9,23.43650012]
[1673898235054,16.01688,1597.7,1597.0,4.64075316]
[1673898235266,16.01688,1597.7,1597.2,8.26091]
[1673898235514,12.51856,1597.7,1597.2,8.26351289]
[1673898235694,12.51856,1597.7,1597.2,0.00260289]
[1673898236788,14.51856,1597.7,1597.2,0.00260289]
[1673898237160,20.77784,1597.7,1597.2,0.00260289]
[1673898237394,21.055557,1597.7,1597.2,0.00260289]
[1673898237796,2.0,1597.6,1597.2,0.00260289]
[1673898238011,21.055557,1597.7,1597.2,0.00260289]
[1673898238833,23.055557,1597.7,1597.2,0.00260289]
[1673898239098,18.77955,1597.5,1597.2,0.00260289]
[1673898240148,18.77955,1597.5,1596.7,6.26284]
[1673898240304,8.48922087,1597.6,1596.6,42.70757847]
[1673898240305,18.78333,1597.2,1596.6,42.70757847]
[1673898240759,18.78333,1597.2,1596.6,12.57757847]
[1673898242026,18.78333,1597.2,1596.7,2.0]
[1673898242213,6.26038,1597.4,1596.7,25.42755617]
[1673898242443,6.26038,1597.4,1596.8,4.64075316]
[1673898242617,6.26038,1597.4,1597.0,6.26169]
[1673898242618,12.52079,1597.4,1597.0,6.26169]
[1673898243313,12.52079,1597.4,1597.0,8.26169]
[1673898243674,12.52079,1597.4,1597.0,6.26169]
[1673898244252,12.52079,1597.4,1597.0,8.26169]
[1673898244401,12.52079,1597.4,1596.9,9.27406139]
[1673898244606,18.7812,1597.4,1596.9,0.01210139]
[1673898245678,18.7812,1597.4,1596.7,9.2628]
[1673898245925,18.7812,1597.4,1596.6,0.05126847]
[1673898246080,4.87812,1597.3,1596.6,0.05126847]
[1673898246454,10.96197342,1597.5,1596.6,0.05126847]
[1673898246455,6.2611,1597.2,1596.6,0.05126847]
[1673898246670,0.48046569,1597.6,1597.2,1.65719474]
[1673898246816,0.48046569,1597.6,1597.2,6.2979479]
[1673898247028,0.48046569,1597.6,1597.3,6.26048]
[1673898247292,0.48046569,1597.6,1597.4,0.01209761]
[1673898247506,6.25792,1598.0,1597.4,2.01209761]
[1673898247821,9.09962631,1598.3,1597.5,12.51928]
[1673898247994,6.39764289,1598.3,1597.5,17.16003316]
[1673898248186,6.39764289,1598.3,1597.6,2.0]
[1673898248398,6.39764289,1598.3,1597.6,14.5184]
[1673898248640,0.14080289,1598.3,1597.7,3.0]
[1673898248850,0.14080289,1598.3,1597.8,12.51668]
[1673898249251,0.14080289,1598.3,1597.9,2.0]
[1673898249467,0.14080289,1598.3,1597.9,6.90435918]
[1673898249980,0.14080289,1598.3,1598.0,0.64633918]
[1673898250314,6.39773289,1598.3,1598.0,0.64633918]
[1673898250747,0.14080289,1598.3,1598.0,13.16194918]
[1673898250963,0.14337005,1598.3,1598.0,0.64633918]
[1673898251166,0.14337005,1598.3,1597.9,3.0]
[1673898251377,6.40013005,1598.3,1597.9,3.0]
[1673898251588,6.40013005,1598.3,1597.8,0.64633918]
[1673898251900,12.65689005,1598.3,1597.4,11.5801]
[1673898252130,12.65689005,1598.3,1597.4,17.84008]
[1673898252131,1.5,1598.2,1597.4,17.84008]
[1673898252464,6.25767,1598.1,1597.4,6.25998]
[1673898252650,6.25767,1598.1,1597.5,2.0]
[1673898252822,0.14080289,1598.3,1597.5,19.80653234]
[1673898253032,0.14080289,1598.3,1597.7,2.0]
[1673898253306,0.14080289,1598.3,1597.8,6.25856]
[1673898253491,0.14080289,1598.3,1597.9,2.0]
[1673898253664,0.14080289,1598.3,1597.9,8.25801]
[1673898254133,0.14080289,1598.3,1597.9,6.25801]
[1673898254605,0.14080289,1598.3,1597.7,9.25874]
[1673898254822,0.14080289,1598.3,1597.6,6.25906]
[1673898254823,6.39745289,1598.3,1597.6,6.25906]
[1673898255297,0.14080289,1598.3,1597.6,6.25906]
[1673898255472,0.14080289,1598.3,1597.7,3.0]
[1673898255663,12.55424289,1598.3,1597.7,3.0]
[1673898255868,0.00256716,1598.2,1597.7,3.0]
[1673898256131,12.51699716,1598.2,1597.6,0.00965759]
[1673898256342,12.51699716,1598.2,1597.6,15.52821759]
[1673898256343,0.00256716,1598.2,1597.6,15.52821759]
[1673898256873,0.00256716,1598.2,1597.7,2.0]
[1673898257182,0.00256716,1598.2,1597.8,6.25843]
[1673898257342,0.04080289,1598.3,1597.9,6.26762577]
[1673898257768,0.04080289,1598.3,1597.9,8.26762577]
[1673898258189,0.04080289,1598.3,1597.9,6.26762577]
[1673898258503,0.04337005,1598.3,1597.5,6.25951]
[1673898258723,13.18663406,1598.3,1597.4,6.25989]
[1673898259062,2.0,1598.2,1597.4,6.25989]
[1673898259236,12.51587,1598.0,1597.4,6.25989]
[1673898259653,6.2579,1598.0,1597.4,14.52006]
[1673898260089,6.26019716,1598.1,1597.4,14.52006]
[1673898260324,0.00256716,1598.1,1597.4,20.78023]
[1673898260519,12.51750716,1598.1,1597.5,8.25971]
[1673898261811,12.51750716,1598.1,1597.5,14.51949]
[1673898261967,6.25705,1598.2,1597.5,14.51949]
[1673898262177,0.04080289,1598.3,1597.5,19.16024316]
[1673898262754,0.04080289,1598.3,1597.4,3.0]
[1673898262755,0.00256716,1598.2,1597.4,3.0]
[1673898262979,12.51565,1598.0,1597.5,3.0]
[1673898263589,12.51565,1598.0,1597.4,2.0]
[1673898263590,12.51565,1598.0,1597.4,3.0]
[1673898263798,12.51565,1598.0,1597.3,3.0]
[1673898264710,12.51565,1598.0,1597.3,5.0]
[1673898264925,15.018765,1598.0,1597.3,5.0]
[1673898265344,15.02133216,1598.0,1597.3,5.0]
[1673898265602,15.02133216,1598.0,1597.3,11.26049]
[1673898265959,15.02133216,1598.0,1597.4,2.0]
[1673898266170,21.27916216,1598.0,1597.4,2.0]
[1673898267378,6.25782,1598.0,1597.4,2.0]
[1673898267539,12.5155,1598.1,1597.4,2.0]
[1673898267540,12.51541,1598.1,1597.4,20.78043]
[1673898267750,12.51541,1598.1,1597.5,3.0]
[1673898267960,12.51541,1598.1,1597.7,2.0]
[1673898268203,12.51541,1598.1,1597.7,8.25889]
[1673898268434,18.772,1598.2,1597.7,14.51788]
[1673898268655,18.772,1598.2,1597.7,8.25889]
[1673898268656,6.25751,1598.1,1597.7,8.25889]
[1673898268955,12.51502,1598.1,1597.7,2.0]
[1673898269174,12.51502,1598.1,1597.6,8.25907]
[1673898269329,12.51502,1598.1,1597.5,11.25948]
[1673898269539,18.77253,1598.1,1597.5,11.25948]
[1673898270009,18.77253,1598.1,1597.5,2.0]
[1673898270182,18.77253,1598.1,1597.2,7.91783474]
[1673898270690,18.77628,1597.8,1597.2,1.65719474]
[1673898270894,18.77859,1597.6,1597.2,1.65719474]
[1673898272528,12.51901,1597.6,1597.2,1.65719474]
[1673898274065,0.00256716,1597.5,1597.2,1.65719474]
[1673898274506,12.52034,1597.4,1597.2,1.65719474]
[1673898274738,5.32803505,1597.4,1597.2,1.65719474]
[1673898275542,11.58820505,1597.4,1597.2,1.65719474]
[1673898275752,6.26235716,1597.5,1597.2,1.65719474]
[1673898275989,6.25979,1597.5,1597.2,7.91812474]
[1673898276523,18.78009,1597.5,1597.2,1.65719474]
[1673898279535,2.00256716,1597.4,1597.2,1.65719474]
[1673898279776,6.26056,1597.3,1597.2,1.65719474]
[1673898279987,12.52112,1597.3,1597.2,1.65719474]
[1673898280803,14.52112,1597.3,1597.2,1.65719474]
[1673898281933,14.52112,1597.3,1596.9,0.04835038]
[1673898281934,2.0,1597.2,1596.9,0.04835038]
[1673898282145,0.2,1597.1,1596.9,0.04835038]
[1673898282353,25.04696,1597.0,1596.9,0.04835038]
[1673898282826,25.04952716,1597.0,1596.9,0.04835038]
[1673898283616,28.04952716,1597.0,1596.9,0.04835038]
[1673898283828,29.91352716,1597.0,1596.9,0.04835038]
[1673898284129,33.12487988,1597.0,1596.9,0.04835038]
[1673898284702,2.0,1596.9,1596.7,0.04835038]
[1673898284914,21.99913988,1597.0,1596.7,0.04835038]
[1673898285180,18.78778716,1597.0,1596.7,0.04835038]
[1673898287245,12.52604716,1597.0,1596.7,0.04835038]
[1673898287608,1.247,1596.8,1596.6,0.05126847]
[1673898287821,18.78873,1596.7,1596.6,0.05126847]
[1673898288394,13.77237,1596.8,1596.7,1.65778202]
[1673898288567,1.244,1597.0,1596.7,1.65778202]
[1673898288780,6.26126,1597.2,1596.7,1.65778202]
[1673898288989,12.52252,1597.2,1596.7,1.65778202]
[1673898289522,1.252,1596.9,1596.7,1.65778202]
[1673898289750,18.78756,1596.8,1596.7,1.65778202]
[1673898290247,12.52504,1596.8,1596.7,1.65778202]
[1673898290465,6.26252,1596.8,1596.7,1.65778202]
[1673898290655,6.2622,1596.9,1596.7,1.65778202]
[1673898291131,7.50197,1597.0,1596.7,1.65778202]
[1673898291652,12.52428,1596.9,1596.7,1.65778202]
[1673898292034,6.26213,1596.9,1596.7,1.65778202]
[1673898294492,12.52426,1596.9,1596.7,1.65778202]
[1673898294856,6.26213,1596.9,1596.7,1.65778202]
[1673898295065,12.52408,1597.0,1596.7,1.65778202]
[1673898295278,27.89501,1597.6,1596.7,1.65778202]
[1673898295279,9.8351,1597.4,1596.7,1.65778202]
[1673898295494,9.8351,1597.4,1596.9,6.26191]
[1673898295495,16.09555,1597.4,1596.9,6.26191]
[1673898295872,6.26045,1597.4,1597.0,2.0]
[1673898296020,6.26045,1597.4,1596.7,1.65778202]
[1673898296386,12.5209,1597.4,1596.6,0.05126847]
[1673898296555,1.249,1597.2,1596.6,0.05126847]
[1673898296770,7.51021,1597.2,1596.6,0.05126847]
[1673898297209,7.51021,1597.2,1596.6,6.31451847]
[1673898297423,31.675,1597.6,1596.7,3.0]
[1673898297424,29.188,1597.6,1596.7,3.0]
[1673898297768,7.50909,1597.7,1596.9,2.0]
[1673898297927,7.50909,1597.7,1597.0,6.26149]
[1673898298537,7.50909,1597.7,1597.0,6.90782918]
[1673898299177,7.50909,1597.7,1597.0,6.26149]
[1673898299377,7.50909,1597.7,1597.0,6.90782918]
[1673898299847,1.244,1597.6,1597.0,6.90782918]
[1673898300071,7.5035,1597.6,1597.0,6.90782918]
[1673898300296,13.763,1597.6,1597.0,6.90782918]
[1673898300431,12.5207,1597.4,1596.6,18.47371847]
[1673898300641,13.7727,1597.4,1596.7,2.0]
[1673898300851,7.51234,1597.4,1596.8,12.52503]
[1673898301096,6.2595,1597.6,1596.8,23.76587368]
[1673898301328,32.27150289,1598.3,1596.9,11.24084368]
[1673898301497,1.25,1598.0,1597.2,18.78249]
[1673898301706,13.7657,1598.0,1597.2,6.26083]
[1673898301915,7.5054,1597.9,1597.2,6.26083]
[1673898302168,0.75054,1597.8,1597.3,3.0]
[1673898302373,0.75054,1597.8,1597.2,3.0]
[1673898302588,0.75054,1597.8,1597.3,0.64633918]
[1673898302964,7.5054,1597.9,1597.3,0.64633918]
[1673898303208,7.5054,1597.9,1597.0,9.98154]
[1673898303209,1.24,1597.8,1597.0,8.73954]
[1673898303422,1.252,1597.7,1597.1,9.26126]
[1673898303694,7.50986,1598.0,1597.3,12.521]
[1673898303900,7.50986,1598.0,1597.4,3.0]
[1673898304156,0.750986,1597.9,1597.2,6.26057]
[1673898304374,7.009536,1597.9,1597.3,3.0]
[1673898304587,7.009286,1597.9,1597.3,3.0]
[1673898304902,14.507586,1597.9,1597.2,3.64633918]
[1673898305055,14.507586,1597.9,1597.1,3.0]
[1673898305264,2.70532576,1597.8,1597.1,3.0]
[1673898305636,2.70532576,1597.8,1597.1,14.52268]
[1673898305637,7.71208576,1597.8,1597.1,14.52268]
[1673898305789,7.71208576,1597.8,1597.1,15.16901918]
[1673898305996,7.71208576,1597.8,1597.1,13.16901918]
[1673898306477,7.71208576,1597.8,1597.1,6.90767918]
[1673898306630,7.03048858,1597.7,1597.1,6.90767918]
[1673898307051,13.28976858,1597.7,1597.1,0.64633918]
[1673898307261,13.28976858,1597.7,1597.0,5.0]
[1673898307681,13.28976858,1597.7,1597.0,11.26171]
[1673898307889,13.28976858,1597.7,1597.0,3.0]
[1673898308134,18.78015,1597.5,1596.8,6.90874918]
[1673898308351,1.25,1597.4,1596.8,0.64633918]
[1673898308575,12.52168,1597.3,1596.7,8.26268]
[1673898308781,7.51197,1597.5,1596.7,14.52559]
[1673898308992,7.51197,1597.5,1596.8,2.0]
[1673898308993,6.26061,1597.3,1596.8,2.0]
[1673898309184,6.26061,1597.3,1596.8,8.26243]
[1673898310164,6.26061,1597.3,1596.8,14.52495]
[1673898310316,6.25911,1597.7,1597.3,1.65707861]
[1673898310537,6.20911,1597.7,1597.3,1.65707861]
[1673898310782,6.25867,1597.8,1597.3,7.91754861]
[1673898310956,8.692864,1597.8,1597.3,14.17810861]
[1673898311851,14.951534,1597.8,1597.3,1.65707861]
[1673898312167,18.77838,1597.6,1597.3,1.65707861]
[1673898312795,0.00256716,1597.5,1596.6,0.05126847]
[1673898312998,1.247,1597.0,1596.6,0.05126847]
[1673898313382,6.26166,1597.1,1596.6,2.05126847]
[1673898313597,6.26422716,1597.1,1596.6,2.05126847]
[1673898313789,12.52589716,1597.1,1596.6,0.05126847]
[1673898314005,1.247,1597.0,1596.6,0.05126847]
[1673898314318,6.26216,1596.9,1596.6,0.05126847]
[1673898314535,7.50822716,1597.1,1596.6,6.31444847]
[1673898314777,1.244,1597.1,1596.6,6.31444847]
[1673898315104,0.31167203,1597.1,1596.6,6.31444847]
[1673898315262,0.31167203,1597.1,1596.6,12.57774847]
[1673898315478,1.25,1597.2,1596.7,5.00966303]
[1673898315730,13.7721,1597.2,1596.7,3.00966303]
[1673898315953,15.775386,1597.2,1596.7,3.00966303]
[1673898316420,15.775386,1597.2,1596.7,5.00966303]
[1673898317311,15.775386,1597.2,1596.7,3.00966303]
[1673898317687,0.00256716,1597.1,1596.7,3.00966303]
[1673898317972,6.26175,1597.0,1596.7,0.00966303]
[1673898318954,12.5235,1597.0,1596.7,0.00966303]
[1673898319167,6.26175,1597.0,1596.7,0.00966303]
[1673898319625,6.26175,1597.0,1596.7,2.00966303]
[1673898319862,6.26175,1597.0,1596.7,5.00966303]
[1673898319993,12.5235,1597.0,1596.7,3.00966303]
[1673898320308,12.5235,1597.0,1596.7,5.00966303]
[1673898320515,12.5235,1597.0,1596.7,3.00966303]
[1673898320781,20.66400372,1597.0,1596.6,0.05126847]
[1673898320988,12.52582,1596.7,1596.6,0.05126847]
[1673898321564,18.78873,1596.7,1596.6,0.05126847]
[1673898321819,6.26229,1596.9,1596.6,0.05126847]
[1673898323052,12.52458,1596.9,1596.6,0.05126847]
[1673898323899,23.062146,1596.9,1596.6,0.05126847]
[1673898324297,17.71014,1597.0,1596.6,12.57781847]
[1673898324511,7.50394,1597.0,1596.6,6.31451847]
[1673898324861,13.76844716,1597.0,1596.6,0.05126847]
[1673898325074,20.03038716,1597.0,1596.6,0.05126847]
[1673898327516,20.02782,1597.0,1596.6,0.05126847]
[1673898327824,13.76588,1597.0,1596.6,6.3241721]
[1673898328840,13.76588,1597.0,1596.6,0.0609321]
[1673898329068,20.02782,1597.0,1596.6,0.0609321]
[1673898330132,1.245,1596.7,1596.6,0.05126847]
[1673898330303,20.03373,1596.7,1596.6,0.05126847]
[1673898330732,22.663386,1596.7,1596.6,0.05126847]
[1673898332703,22.663386,1596.7,1596.6,0.40525404]
[1673898332913,22.670386,1596.7,1596.6,5.404e-05]
[1673898333289,24.670386,1596.7,1596.6,5.404e-05]
[1673898333446,27.670386,1596.7,1596.6,5.404e-05]
[1673898334076,35.549386,1596.7,1596.6,5.404e-05]
[1673898335143,8.627,1596.6,1596.5,6.44e-06]
[1673898335333,8.627,1596.6,1596.0,0.44403648]
[1673898335334,6.627,1596.4,1596.0,0.44403648]
[1673898335548,1.24,1596.2,1596.0,0.44403648]
[1673898335915,18.79581,1596.1,1596.0,0.44403648]
[1673898336234,17.13744474,1596.1,1596.0,0.44403648]
[1673898336454,4.60690474,1596.1,1596.0,0.44403648]
[1673898336966,10.87217474,1596.1,1596.0,0.44403648]
[1673898337155,12.58615093,1596.1,1596.0,0.44403648]
[1673898337644,18.85142093,1596.1,1596.0,0.44403648]
[1673898338300,12.58615093,1596.1,1596.0,0.44403648]
[1673898338514,10.87217474,1596.1,1596.0,0.44403648]
[1673898338754,0.00256716,1596.2,1596.0,0.44403648]
[1673898338923,7.51552,1596.3,1596.0,0.44403648]
[1673898339141,1.252,1596.9,1596.1,0.00966667]
[1673898339381,10.3076,1596.8,1596.1,0.00966667]
[1673898339694,16.57032,1596.8,1596.1,15.53982667]
[1673898340080,16.57032,1596.8,1596.2,2.0]
[1673898340398,7.51184,1597.0,1596.2,20.3467394]
[1673898340612,7.51184,1597.0,1596.3,3.0]
[1673898340827,7.51184,1597.0,1596.3,9.91048918]
[1673898341032,13.77368,1597.0,1596.3,9.91048918]
[1673898341369,13.77368,1597.0,1596.4,2.0]
[1673898341700,13.77368,1597.0,1596.3,9.91048918]
[1673898341854,13.77624716,1597.0,1596.3,9.91048918]
[1673898344024,6.26334,1596.6,1596.1,0.00966667]
[1673898344185,6.26334,1596.6,1596.1,6.27483667]
[1673898344398,12.52668,1596.6,1596.2,3.0]
[1673898344606,12.52668,1596.6,1596.1,0.00966667]
[1673898345706,12.52668,1596.6,1596.1,6.27490667]
[1673898345877,6.26334,1596.6,1596.2,3.0]
[1673898346093,12.52894716,1596.7,1596.2,9.26484]
[1673898346592,6.26334,1596.6,1596.2,3.0]
[1673898346799,12.52668,1596.6,1596.2,3.0]
[1673898347151,18.79002,1596.6,1596.2,3.0]
[1673898347318,18.79002,1596.6,1596.1,3.0]
[1673898347319,1.879002,1596.5,1596.1,3.0]
[1673898347535,12.52833,1596.4,1596.1,3.0]
[1673898347761,12.52833,1596.4,1596.0,0.44403648]
[1673898347762,18.7925,1596.4,1596.0,0.44403648]
[1673898348076,1.24,1596.3,1596.0,0.44403648]
[1673898348518,12.52974,1596.2,1596.0,0.44403648]
[1673898349847,18.79461,1596.2,1596.0,0.44403648]
[1673898350061,1.02955302,1596.1,1596.0,0.44403648]
[1673898350306,19.82536302,1596.1,1596.0,0.44403648]
[1673898350478,13.56009302,1596.1,1596.0,0.44403648]
[1673898350689,19.82536302,1596.1,1596.0,0.44403648]
[1673898351029,19.82536302,1596.1,1595.9,0.0579924]
[1673898351030,2.0,1596.0,1595.9,0.0579924]
[1673898351240,14.9138563,1596.0,1595.9,0.0579924]
[1673898351456,16.1608563,1596.0,1595.9,0.0579924]
[1673898352257,14.9138563,1596.0,1595.9,0.0579924]
[1673898352473,6.26527,1596.1,1595.9,0.0579924]
[1673898353223,12.53076,1596.1,1595.9,0.0579924]
[1673898354508,20.04825,1596.1,1595.9,0.0579924]
[1673898354896,19.1153249,1596.1,1595.9,0.0579924]
[1673898355120,12.8498349,1596.1,1595.9,0.0579924]
[1673898355325,1.28498349,1596.0,1595.9,0.0579924]
[1673898355571,20.08196349,1596.0,1595.9,0.2879924]
[1673898355823,20.08196349,1596.0,1595.9,0.0579924]
[1673898356176,13.81630349,1596.0,1595.9,0.0579924]
[1673898356389,12.81616657,1596.0,1595.9,0.0579924]
[1673898356663,19.08182657,1596.0,1595.9,0.0579924]
[1673898356806,19.08182657,1596.0,1595.9,0.2879924]
[1673898357258,11.5979249,1596.1,1595.9,0.2879924]
[1673898357552,6.26566,1596.0,1595.9,0.2879924]
[1673898357794,12.53132,1596.0,1595.9,0.0579924]
[1673898359030,13.78132,1596.0,1595.9,0.0579924]
[1673898359665,16.31923749,1596.0,1595.9,0.0579924]
[1673898360097,22.58489749,1596.0,1595.9,0.0579924]
[1673898360315,22.58746465,1596.0,1595.9,0.0579924]
[1673898361376,29.21446465,1596.0,1595.8,0.05404904]
[1673898361536,29.21446465,1596.0,1595.7,0.04403648]
[1673898361537,25.06576,1595.8,1595.7,0.04403648]
[1673898361746,26.32032716,1595.8,1595.7,0.04403648]
[1673898361997,29.57232716,1595.8,1595.7,3.648e-05]
[1673898362209,29.57232716,1595.8,1595.6,0.05502692]
[1673898362210,20.80052,1595.7,1595.6,0.05502692]
[1673898362395,34.54757272,1595.7,1595.5,0.05573319]
[1673898362606,15.21402716,1595.6,1595.5,0.05573319]
[1673898362796,15.21402716,1595.6,1595.5,3.319e-05]
[1673898363012,18.21402716,1595.6,1595.3,0.05502692]
[1673898363222,12.53702716,1595.6,1595.3,0.05502692]
[1673898363491,6.26723,1595.6,1595.3,0.05502692]
[1673898364005,6.26684,1595.7,1595.3,2.05502692]
[1673898364216,36.67715,1595.9,1595.4,0.43550269]
[1673898364217,25.49875,1595.9,1595.4,0.43550269]
[1673898364424,31.7649,1595.9,1595.4,0.43550269]
[1673898364917,12.5323,1595.9,1595.4,0.43550269]
[1673898365525,25.42545,1595.9,1595.3,0.05502692]
[1673898365739,1.252,1595.6,1595.3,0.05502692]
[1673898365985,6.26718,1595.7,1595.3,0.05502692]
[1673898366536,12.53436,1595.7,1595.3,0.05502692]
[1673898366744,15.04141272,1595.7,1595.3,0.05502692]
[1673898366896,15.04141272,1595.7,1595.3,0.28502692]
[1673898369677,21.30859272,1595.7,1595.3,0.28502692]
[1673898370006,6.245,1595.6,1595.3,0.28502692]
[1673898370176,25.07048,1595.5,1595.3,0.28502692]
[1673898370522,21.311108,1595.4,1595.3,0.05502692]
[1673898371307,12.53604,1595.4,1595.3,0.05502692]
[1673898371565,12.53604,1595.4,1595.3,0.77002692]
[1673898371566,6.26802,1595.4,1595.3,0.77002692]
[1673898372050,6.26802,1595.4,1595.3,0.05502692]
[1673898372596,6.26802,1595.4,1595.3,0.77002692]
[1673898372777,18.80337,1595.5,1595.3,0.77002692]
[1673898373108,12.53486,1595.6,1595.3,0.8525323]
[1673898374563,12.53486,1595.6,1595.3,0.77002692]
[1673898374782,18.80237,1595.6,1595.3,0.77002692]
[1673898375018,18.80237,1595.6,1595.4,0.23]
[1673898376404,17.14347607,1595.6,1595.4,0.23]
[1673898378763,17.14347607,1595.6,1595.4,0.18]
[1673898379399,17.14347607,1595.6,1595.3,0.05502692]
[1673898379833,6.26705,1595.7,1595.3,0.2660323]
[1673898380062,6.26606,1595.9,1595.3,20.3170223]
[1673898380278,12.53215,1595.9,1595.4,9.26793]
[1673898380495,12.53215,1595.9,1595.4,15.53595]
[1673898380496,6.26605,1595.9,1595.4,15.53595]
[1673898380685,6.26576,1596.0,1595.5,2.0]
[1673898381028,6.26576,1596.0,1595.5,14.53488]
[1673898381400,6.26576,1596.0,1595.5,12.53488]
[1673898381609,0.626576,1595.9,1595.4,9.26799]
[1673898381818,6.26634,1595.9,1595.4,9.26799]
[1673898382059,6.26576,1596.0,1595.4,15.53601]
[1673898382237,6.26576,1596.0,1595.5,2.0]
[1673898382442,6.26576,1596.0,1595.6,6.26719]
[1673898383863,6.26576,1596.0,1595.6,8.26719]
[1673898384697,6.26576,1596.0,1595.6,14.53442]
[1673898384879,6.26576,1596.0,1595.6,20.80165]
[1673898385110,6.26576,1596.0,1595.6,22.04765]
[1673898385490,6.26576,1596.0,1595.7,2.0]
[1673898385719,6.26505,1596.2,1595.7,20.80036]
[1673898386004,12.53016,1596.2,1595.7,20.80036]
[1673898386207,10.1708,1596.4,1595.7,22.04336]
[1673898386445,6.2635,1596.6,1595.8,4.50126816]
[1673898386605,6.2635,1596.6,1596.1,1.246]
[1673898386820,6.2635,1596.6,1596.2,0.1246]
[1673898387027,6.26324,1596.7,1596.2,0.1246]
[1673898387870,2.33494077,1596.6,1595.5,0.91179332]
[1673898388074,2.33494077,1596.6,1595.6,6.26688]
[1673898388075,12.52974,1596.2,1595.6,6.26688]
[1673898388500,12.53230716,1596.2,1595.6,2.0]
[1673898388771,14.41199788,1596.2,1595.6,2.826745]
[1673898389895,12.53230716,1596.2,1595.6,2.826745]
[1673898390119,12.53230716,1596.2,1595.6,4.066745]
[1673898390302,12.53230716,1596.2,1595.6,10.333935]
[1673898390724,18.79717716,1596.2,1595.6,10.333935]
[1673898390983,18.79717716,1596.2,1595.6,16.6108347]
[1673898391134,21.30335488,1596.2,1595.6,16.6108347]
[1673898391553,21.30335488,1596.2,1595.6,22.8780647]
[1673898391896,21.30335488,1596.2,1595.6,20.8780647]
[1673898392294,12.53230716,1596.2,1595.6,20.8780647]
[1673898392510,12.52935,1596.3,1595.7,2.0]
[1673898392750,12.52935,1596.3,1595.8,12.53234]
[1673898392928,12.52935,1596.3,1595.8,18.79878]
[1673898393138,18.7941,1596.3,1595.8,6.97841753]
[1673898393349,12.52935,1596.3,1595.8,13.24485753]
[1673898393541,12.52935,1596.3,1595.8,19.51129753]
[1673898393751,12.52935,1596.3,1595.8,20.75829753]
[1673898393961,18.7941,1596.3,1595.8,0.71228753]
[1673898394167,1.87941,1596.2,1595.7,13.77962]
[1673898394432,12.53081,1596.1,1595.7,7.51281]
[1673898394967,12.53024,1596.2,1596.1,0.93289949]
[1673898395156,18.79254,1596.4,1596.1,0.93289949]
[1673898396169,20.04510716,1596.4,1596.1,0.93289949]
[1673898396603,22.04510716,1596.4,1596.1,0.93289949]
[1673898396812,2.20451072,1596.3,1596.1,0.93289949]
[1673898397025,18.79461,1596.2,1596.1,0.93289949]
[1673898398792,12.52974,1596.2,1596.1,0.93289949]
[1673898399050,6.26464,1596.3,1596.1,0.93289949]
[1673898399256,6.26673716,1596.4,1596.1,0.93289949]
[1673898399484,12.53106716,1596.4,1596.1,0.93289949]
[1673898399878,21.63875888,1596.4,1596.1,0.93289949]
[1673898401327,21.63875888,1596.4,1596.1,0.92962701]
[1673898403682,6.26352,1596.6,1596.1,19.72537701]
[1673898403843,16.02203397,1596.8,1596.1,0.92962701]
[1673898404217,16.02203397,1596.8,1596.3,6.26426]
[1673898404523,16.02203397,1596.8,1596.4,2.0]
[1673898404887,9.75939397,1596.8,1596.4,9.51301]